[Event "*** Titled Tuesday Blitz"]
[Site "Chess.com"]
[Date "2020.05.26"]
[Round "8"]
[White "VMikhalevski"]
[Black "Jumbo"]
[Result "0-1"]
[WhiteElo "2767"]
[BlackElo "2877"]
[TimeControl "180+1"]
[EndTime "11:43:54 PDT"]
[Termination "Jumbo won by resignation"]

1. Nf3 {[%clk 0:03:00.9]} 1... c5 {[%clk 0:02:59]} 2. g3 {[%clk 0:02:59.1]} 2...
g6 {[%clk 0:02:59.2]} 3. c3 {[%clk 0:02:57.2]} 3... Bg7 {[%clk 0:02:55.3]} 4. d4
{[%clk 0:02:57.1]} 4... Qc7 {[%clk 0:02:54]} 5. Bf4 {[%clk 0:02:54.3]} 5... d6
{[%clk 0:02:53.9]} 6. Bg2 {[%clk 0:02:52.5]} 6... Nf6 {[%clk 0:02:53.2]} 7. O-O
{[%clk 0:02:51.4]} 7... O-O {[%clk 0:02:53.6]} 8. Re1 {[%clk 0:02:49]} 8... Qb6
{[%clk 0:02:19.7]} 9. Qb3 {[%clk 0:02:41.7]} 9... Be6 {[%clk 0:02:19.3]} 10. Qa3
{[%clk 0:02:41.5]} 10... cxd4 {[%clk 0:02:06.5]} 11. cxd4 {[%clk 0:02:36.1]}
11... Nc6 {[%clk 0:02:06.4]} 12. Rd1 {[%clk 0:02:25.8]} 12... Nb4 {[%clk
0:02:04.3]} 13. Ne1 {[%clk 0:02:21.9]} 13... Nfd5 {[%clk 0:01:49.8]} 14. e3
{[%clk 0:02:14.2]} 14... Bg4 {[%clk 0:01:39.4]} 15. Rd2 {[%clk 0:01:52.4]} 15...
Nxf4 {[%clk 0:01:06.5]} 16. gxf4 {[%clk 0:01:51]} 16... Rac8 {[%clk 0:00:58.4]}
17. Nc3 {[%clk 0:01:49.3]} 17... Bf5 {[%clk 0:00:51.2]} 18. Qb3 {[%clk
0:01:37.8]} 18... Be6 {[%clk 0:00:50.6]} 19. Qd1 {[%clk 0:01:37]} 19... Bd7
{[%clk 0:00:36.4]} 20. a3 {[%clk 0:01:33.9]} 20... Nc6 {[%clk 0:00:36.4]} 21.
Nd5 {[%clk 0:01:33.6]} 21... Qd8 {[%clk 0:00:36.7]} 22. Nc3 {[%clk 0:01:29.6]}
22... a6 {[%clk 0:00:36.3]} 23. Rc1 {[%clk 0:01:28.1]} 23... Na5 {[%clk
0:00:36.6]} 24. Nd3 {[%clk 0:01:21.6]} 24... Be6 {[%clk 0:00:33.3]} 25. Nd5
{[%clk 0:01:15.2]} 25... Rxc1 {[%clk 0:00:26]} 26. Nxc1 {[%clk 0:01:15]} 26...
Qd7 {[%clk 0:00:20.5]} 27. Rc2 {[%clk 0:01:12.5]} 27... Nc6 {[%clk 0:00:19]} 28.
Nd3 {[%clk 0:01:08.8]} 28... Bg4 {[%clk 0:00:18.6]} 29. Qc1 {[%clk 0:01:03.1]}
29... Bf5 {[%clk 0:00:18.4]} 30. Qd2 {[%clk 0:01:00]} 30... Qd8 {[%clk
0:00:18.2]} 31. Rc1 {[%clk 0:00:57.8]} 31... a5 {[%clk 0:00:17.3]} 32. Nc3
{[%clk 0:00:54.7]} 32... Qd7 {[%clk 0:00:17.1]} 33. Nd5 {[%clk 0:00:50.6]} 33...
Qd8 {[%clk 0:00:16.7]} 34. b4 {[%clk 0:00:49.6]} 34... axb4 {[%clk 0:00:16.3]}
35. N3xb4 {[%clk 0:00:47.8]} 35... Nxb4 {[%clk 0:00:16.2]} 36. Qxb4 {[%clk
0:00:47.4]} 36... e6 {[%clk 0:00:16.3]} 37. Nb6 {[%clk 0:00:44.1]} 37... e5
{[%clk 0:00:15.9]} 38. fxe5 {[%clk 0:00:35.5]} 38... dxe5 {[%clk 0:00:16.8]} 39.
d5 {[%clk 0:00:35.5]} 39... Bf6 {[%clk 0:00:17.1]} 40. d6 {[%clk 0:00:34.9]}
40... e4 {[%clk 0:00:15.7]} 41. d7 {[%clk 0:00:31]} 41... Kg7 {[%clk 0:00:12.9]}
42. Rc8 {[%clk 0:00:27.7]} 42... Qe7 {[%clk 0:00:12.5]} 43. Rxf8 {[%clk
0:00:23.7]} 43... Qxf8 {[%clk 0:00:12.3]} 44. Nd5 {[%clk 0:00:09.6]} 44... Qxb4
{[%clk 0:00:10.7]} 45. axb4 {[%clk 0:00:09]} 45... Bd8 {[%clk 0:00:11.1]} 46.
Nc3 {[%clk 0:00:06.9]} 46... Bxd7 {[%clk 0:00:10.7]} 47. Bxe4 {[%clk 0:00:07.3]}
47... b6 {[%clk 0:00:10.8]} 48. b5 {[%clk 0:00:05.3]} 48... f5 {[%clk
0:00:10.3]} 49. Bc6 {[%clk 0:00:04.8]} 49... Be6 {[%clk 0:00:10.5]} 50. Nd5
{[%clk 0:00:04.8]} 50... g5 {[%clk 0:00:09.2]} 51. f3 {[%clk 0:00:04]} 51... h5
{[%clk 0:00:09.6]} 52. Kf2 {[%clk 0:00:04.4]} 52... Bg8 {[%clk 0:00:09.2]} 53.
Bb7 {[%clk 0:00:03.8]} 53... Kf7 {[%clk 0:00:08.8]} 54. Bc8 {[%clk 0:00:02.9]}
54... Kg6 {[%clk 0:00:07.8]} 55. Bb7 {[%clk 0:00:03]} 55... Be6 {[%clk
0:00:07.6]} 56. h3 {[%clk 0:00:02.7]} 56... Bf7 {[%clk 0:00:06.8]} 57. Kg2
{[%clk 0:00:02.5]} 57... Be6 {[%clk 0:00:06.5]} 58. Kf2 {[%clk 0:00:03]} 58...
Kg7 {[%clk 0:00:07]} 59. Kg2 {[%clk 0:00:03.3]} 59... Bg8 {[%clk 0:00:06.6]} 60.
Kf2 {[%clk 0:00:03.6]} 60... Kf7 {[%clk 0:00:06.8]} 61. Kg2 {[%clk 0:00:04]}
61... Ke6 {[%clk 0:00:06.6]} 62. Kf2 {[%clk 0:00:04]} 62... Kd6 {[%clk
0:00:06.6]} 63. Nb4 {[%clk 0:00:03.5]} 63... Kc5 {[%clk 0:00:06.3]} 64. Nc6
{[%clk 0:00:03.6]} 64... Bf6 {[%clk 0:00:06.3]} 65. Ba6 {[%clk 0:00:03.7]} 65...
Bd5 {[%clk 0:00:04.9]} 66. Nb8 {[%clk 0:00:04]} 66... Be6 {[%clk 0:00:04.6]} 67.
Nc6 {[%clk 0:00:04.1]} 67... Bc4 {[%clk 0:00:03.7]} 68. Nb8 {[%clk 0:00:04.1]}
68... Be6 {[%clk 0:00:03.8]} 69. Nc6 {[%clk 0:00:03.7]} 69... f4 {[%clk
0:00:04.3]} 70. exf4 {[%clk 0:00:03.1]} 70... gxf4 {[%clk 0:00:05.2]} 71. Nb8
{[%clk 0:00:02.6]} 71... Bxh3 {[%clk 0:00:04.4]} 72. Bb7 {[%clk 0:00:01.7]}
72... Be6 {[%clk 0:00:04.1]} 73. Be4 {[%clk 0:00:01.9]} 73... h4 {[%clk
0:00:03.4]} 74. Nc6 {[%clk 0:00:02.3]} 74... h3 {[%clk 0:00:03.5]} 75. Kg1
{[%clk 0:00:02.7]} 75... Bd4+ {[%clk 0:00:03.6]} 76. Kh2 {[%clk 0:00:03.1]}
76... Bf2 {[%clk 0:00:03.6]} 77. Nd8 {[%clk 0:00:03]} 77... Bg3+ {[%clk
0:00:03.7]} 78. Kh1 {[%clk 0:00:03.2]} 78... Bc8 {[%clk 0:00:04]} 79. Nf7 {[%clk
0:00:02.8]} 79... Be6 {[%clk 0:00:03.7]} 80. Ng5 {[%clk 0:00:02.5]} 80... Bd7
{[%clk 0:00:04]} 81. Bd3 {[%clk 0:00:01.8]} 81... Bxb5 {[%clk 0:00:03.6]} 82.
Bxb5 {[%clk 0:00:01.3]} 82... Kxb5 {[%clk 0:00:04.5]} 83. Nxh3 {[%clk
0:00:01.5]} 83... Kc4 {[%clk 0:00:04.8]} 84. Ng5 {[%clk 0:00:01.9]} 84... b5
{[%clk 0:00:04.6]} 85. Ne4 {[%clk 0:00:02.2]} 85... b4 {[%clk 0:00:04.9]} 86.
Kg2 {[%clk 0:00:02.7]} 86... b3 {[%clk 0:00:05]} 87. Kf1 {[%clk 0:00:02.9]}
87... Kd3 {[%clk 0:00:04.7]} 88. Nc5+ {[%clk 0:00:02.1]} 88... Kc2 {[%clk
0:00:04.9]} 89. Na4 {[%clk 0:00:01.9]} 89... b2 {[%clk 0:00:04.9]} 90. Nxb2
{[%clk 0:00:02.6]} 90... Kxb2 {[%clk 0:00:05.1]} 91. Ke2 {[%clk 0:00:03.1]}
91... Kc3 {[%clk 0:00:06]} 92. Kf1 {[%clk 0:00:03.4]} 92... Kd3 {[%clk
0:00:06.5]} 93. Kg1 {[%clk 0:00:03.9]} 93... Ke2 {[%clk 0:00:06.7]} 94. Kg2
{[%clk 0:00:04.3]} 94... Ke3 {[%clk 0:00:07.2]} 95. Kh3 {[%clk 0:00:04.6]} 95...
Be1 {[%clk 0:00:06.2]} 96. Kg2 {[%clk 0:00:04.5]} 96... Bb4 {[%clk 0:00:06]} 97.
Kg1 {[%clk 0:00:03.9]} 97... Kxf3 {[%clk 0:00:06.2]} 98. Kh2 {[%clk 0:00:04.2]}
98... Kf2 {[%clk 0:00:05.7]} 99. Kh1 {[%clk 0:00:04.5]} 99... f3 {[%clk
0:00:05.6]} 100. Kh2 {[%clk 0:00:04.9]} 100... Ke2 {[%clk 0:00:06]} 101. Kg3
{[%clk 0:00:05.1]} 101... f2 {[%clk 0:00:06.9]} 0-1

[Event "*** Titled Tuesday Blitz"]
[Site "Chess.com"]
[Date "2020.05.26"]
[Round "9"]
[White "JuliaEfremova"]
[Black "AcsinteMatei"]
[Result "1-0"]
[WhiteElo "2235"]
[BlackElo "2329"]
[TimeControl "180+1"]
[EndTime "11:47:45 PDT"]
[Termination "JuliaEfremova won by resignation"]

1. d4 {[%clk 0:03:00.9]} 1... Nf6 {[%clk 0:02:56.3]} 2. Bf4 {[%clk 0:03:00.6]}
2... e6 {[%clk 0:02:55.5]} 3. Nf3 {[%clk 0:02:59]} 3... b6 {[%clk 0:02:56.1]} 4.
e3 {[%clk 0:02:58.8]} 4... Bb7 {[%clk 0:02:56.6]} 5. Bd3 {[%clk 0:02:57.5]} 5...
d5 {[%clk 0:02:57]} 6. O-O {[%clk 0:02:56.6]} 6... Ne4 {[%clk 0:02:57.5]} 7.
Nbd2 {[%clk 0:02:55.4]} 7... Nd7 {[%clk 0:02:57.7]} 8. c4 {[%clk 0:02:53]} 8...
Be7 {[%clk 0:02:42.9]} 9. Rc1 {[%clk 0:02:51.9]} 9... O-O {[%clk 0:02:42.5]} 10.
cxd5 {[%clk 0:02:51.5]} 10... exd5 {[%clk 0:02:42.2]} 11. Bxc7 {[%clk 0:02:51]}
11... Qe8 {[%clk 0:02:35.5]} 12. Ne5 {[%clk 0:02:41.7]} 12... Rc8 {[%clk
0:02:27.5]} 13. Nxd7 {[%clk 0:02:39.6]} 13... Qxd7 {[%clk 0:02:27.1]} 14. Be5
{[%clk 0:02:39.5]} 14... f6 {[%clk 0:02:15.6]} 15. Bf4 {[%clk 0:02:38.3]} 15...
Rxc1 {[%clk 0:02:09.8]} 16. Qxc1 {[%clk 0:02:37.5]} 16... Rc8 {[%clk 0:02:10.7]}
17. Qd1 {[%clk 0:02:37]} 17... Bb4 {[%clk 0:01:53]} 18. Nf3 {[%clk 0:02:33.9]}
18... Qc6 {[%clk 0:01:46.9]} 19. Qb3 {[%clk 0:02:30.3]} 19... Be7 {[%clk
0:01:25.9]} 20. Bxe4 {[%clk 0:02:29.9]} 1-0

[Event "*** Titled Tuesday Blitz"]
[Site "Chess.com"]
[Date "2020.05.26"]
[Round "9"]
[White "Malysch"]
[Black "Matveev_Vladimir"]
[Result "1-0"]
[WhiteElo "2483"]
[BlackElo "2556"]
[TimeControl "180+1"]
[EndTime "11:48:01 PDT"]
[Termination "Malysch won by resignation"]

1. d4 {[%clk 0:03:00.9]} 1... Nf6 {[%clk 0:03:00.2]} 2. c4 {[%clk 0:03:01.4]}
2... g6 {[%clk 0:03:00.7]} 3. g3 {[%clk 0:03:01.6]} 3... Bg7 {[%clk 0:03:01]} 4.
Bg2 {[%clk 0:03:02.2]} 4... O-O {[%clk 0:03:01.5]} 5. Nf3 {[%clk 0:03:02.7]}
5... d6 {[%clk 0:03:01.8]} 6. O-O {[%clk 0:03:03.3]} 6... Nc6 {[%clk 0:03:01.9]}
7. Nc3 {[%clk 0:03:03.8]} 7... Bf5 {[%clk 0:03:02.2]} 8. d5 {[%clk 0:03:02.3]}
8... Na5 {[%clk 0:03:02.2]} 9. Nd4 {[%clk 0:03:02.8]} 9... Bd7 {[%clk
0:03:02.2]} 10. b3 {[%clk 0:03:03.1]} 10... c5 {[%clk 0:03:02.3]} 11. dxc6
{[%clk 0:03:04]} 11... bxc6 {[%clk 0:03:03]} 12. Bb2 {[%clk 0:03:02.9]} 12...
Rb8 {[%clk 0:03:02.9]} 13. Rb1 {[%clk 0:02:37.2]} 13... Qc7 {[%clk 0:03:02.2]}
14. Qd2 {[%clk 0:02:35.1]} 14... Nb7 {[%clk 0:02:54.5]} 15. Rfd1 {[%clk
0:02:31.4]} 15... a5 {[%clk 0:02:54.1]} 16. Rbc1 {[%clk 0:02:30]} 16... Nc5
{[%clk 0:02:53.3]} 17. Ba3 {[%clk 0:02:15.7]} 17... Na6 {[%clk 0:02:42.1]} 18.
h3 {[%clk 0:01:51.7]} 18... Rfd8 {[%clk 0:02:41.4]} 19. Kh2 {[%clk 0:01:50.1]}
19... Be8 {[%clk 0:02:29.4]} 20. f4 {[%clk 0:01:38.4]} 20... Nd7 {[%clk
0:02:17.7]} 21. Nxc6 {[%clk 0:01:34.9]} 21... Rdc8 {[%clk 0:02:14.7]} 22. Nxe7+
{[%clk 0:01:32.9]} 1-0

[Event "*** Titled Tuesday Blitz"]
[Site "Chess.com"]
[Date "2020.05.26"]
[Round "9"]
[White "CzechmVIII"]
[Black "WiktoriaPOL"]
[Result "1-0"]
[WhiteElo "2155"]
[BlackElo "1998"]
[TimeControl "180+1"]
[EndTime "11:48:02 PDT"]
[Termination "CzechmVIII won by resignation"]

1. e4 {[%clk 0:03:00.9]} 1... c5 {[%clk 0:02:59.5]} 2. Nf3 {[%clk 0:03:01]} 2...
d6 {[%clk 0:02:59.2]} 3. Nc3 {[%clk 0:03:00.9]} 3... Nf6 {[%clk 0:02:56.9]} 4.
d4 {[%clk 0:03:01]} 4... cxd4 {[%clk 0:02:56.4]} 5. Nxd4 {[%clk 0:03:01.9]} 5...
a6 {[%clk 0:02:56.3]} 6. Bg5 {[%clk 0:03:00.8]} 6... Nbd7 {[%clk 0:02:54.4]} 7.
Bc4 {[%clk 0:02:59.8]} 7... e6 {[%clk 0:02:52.7]} 8. Qe2 {[%clk 0:02:38.7]} 8...
Nc5 {[%clk 0:02:47.9]} 9. O-O {[%clk 0:02:26]} 9... b5 {[%clk 0:02:46.1]} 10.
Bb3 {[%clk 0:01:58.9]} 10... Bb7 {[%clk 0:02:42.3]} 11. Rad1 {[%clk 0:01:39.2]}
11... Be7 {[%clk 0:02:38.7]} 12. e5 {[%clk 0:01:35.5]} 12... Nd5 {[%clk
0:02:30]} 13. Nxd5 {[%clk 0:01:27.1]} 13... exd5 {[%clk 0:02:26.9]} 14. exd6
{[%clk 0:01:20.6]} 14... Qxd6 {[%clk 0:02:26.3]} 15. Nf5 {[%clk 0:01:11.9]}
15... Qe6 {[%clk 0:02:23.1]} 16. Nxg7+ {[%clk 0:01:11.9]} 1-0

[Event "*** Titled Tuesday Blitz"]
[Site "Chess.com"]
[Date "2020.05.26"]
[Round "9"]
[White "Vesper2018"]
[Black "thedjoker98"]
[Result "1-0"]
[WhiteElo "2330"]
[BlackElo "2459"]
[TimeControl "180+1"]
[EndTime "11:48:06 PDT"]
[Termination "Vesper2018 won by resignation"]

1. e4 {[%clk 0:03:00.2]} 1... e5 {[%clk 0:02:58.1]} 2. Nf3 {[%clk 0:03:00.2]}
2... Nc6 {[%clk 0:02:58.7]} 3. Bc4 {[%clk 0:03:00.4]} 3... Bc5 {[%clk
0:02:58.6]} 4. d3 {[%clk 0:03:00]} 4... Nf6 {[%clk 0:02:59]} 5. Bg5 {[%clk
0:03:00.2]} 5... h6 {[%clk 0:02:58.2]} 6. Bh4 {[%clk 0:03:00.1]} 6... g5 {[%clk
0:02:58.6]} 7. Bg3 {[%clk 0:02:59.1]} 7... d6 {[%clk 0:02:59]} 8. c3 {[%clk
0:02:51.8]} 8... Be6 {[%clk 0:02:58.7]} 9. Nbd2 {[%clk 0:02:45.8]} 9... Qd7
{[%clk 0:02:55.9]} 10. b4 {[%clk 0:02:42.1]} 10... Bb6 {[%clk 0:02:55.7]} 11. a4
{[%clk 0:02:42.4]} 11... a5 {[%clk 0:02:56.1]} 12. b5 {[%clk 0:02:42.3]} 12...
Ne7 {[%clk 0:02:56.5]} 13. Qe2 {[%clk 0:02:32.6]} 13... Ng6 {[%clk 0:02:56.2]}
14. h3 {[%clk 0:02:24.8]} 14... Nf4 {[%clk 0:02:40.8]} 15. Bxf4 {[%clk
0:02:24.4]} 15... gxf4 {[%clk 0:02:41.7]} 16. d4 {[%clk 0:02:22.2]} 16... Bxc4
{[%clk 0:02:38.5]} 17. Nxc4 {[%clk 0:02:21.3]} 17... exd4 {[%clk 0:02:37.1]} 18.
Nxb6 {[%clk 0:01:59.8]} 18... cxb6 {[%clk 0:02:38]} 19. Nxd4 {[%clk 0:01:59]}
19... Rc8 {[%clk 0:02:33.4]} 20. O-O {[%clk 0:01:51.6]} 20... O-O {[%clk
0:02:33.1]} 21. Nf5 {[%clk 0:01:46.4]} 21... Kh7 {[%clk 0:02:32.9]} 22. Qf3
{[%clk 0:01:42.5]} 22... Qe6 {[%clk 0:02:28.3]} 23. Qxf4 {[%clk 0:01:30.3]}
23... Nxe4 {[%clk 0:02:27.2]} 24. Rae1 {[%clk 0:01:29.7]} 24... d5 {[%clk
0:02:27.4]} 25. f3 {[%clk 0:01:23.6]} 25... Qd6 {[%clk 0:02:27.4]} 26. Nxd6
{[%clk 0:01:22.7]} 1-0

[Event "*** Titled Tuesday Blitz"]
[Site "Chess.com"]
[Date "2020.05.26"]
[Round "9"]
[White "NewBornNow"]
[Black "Zakaryan_David"]
[Result "1-0"]
[WhiteElo "2740"]
[BlackElo "2532"]
[TimeControl "180+1"]
[EndTime "11:48:43 PDT"]
[Termination "NewBornNow won by resignation"]

1. e4 {[%clk 0:03:00.9]} 1... c5 {[%clk 0:02:54.4]} 2. Nf3 {[%clk 0:03:00.2]}
2... d6 {[%clk 0:02:53.8]} 3. Bb5+ {[%clk 0:02:59]} 3... Bd7 {[%clk 0:02:52.3]}
4. c4 {[%clk 0:02:58.9]} 4... g6 {[%clk 0:02:51.3]} 5. O-O {[%clk 0:02:57.3]}
5... Bg7 {[%clk 0:02:50.7]} 6. d4 {[%clk 0:02:57.3]} 6... cxd4 {[%clk
0:02:49.6]} 7. Nxd4 {[%clk 0:02:57]} 7... Nf6 {[%clk 0:02:49.1]} 8. Nc3 {[%clk
0:02:56]} 8... O-O {[%clk 0:02:48.5]} 9. h3 {[%clk 0:02:53.8]} 9... Bc8 {[%clk
0:02:44.2]} 10. Be3 {[%clk 0:02:51.5]} 10... a6 {[%clk 0:02:37.3]} 11. Ba4
{[%clk 0:02:50.4]} 11... Qa5 {[%clk 0:02:32.1]} 12. Rc1 {[%clk 0:02:40.1]} 12...
Nbd7 {[%clk 0:02:24.6]} 13. a3 {[%clk 0:02:36.4]} 13... Qh5 {[%clk 0:02:21]} 14.
Qxh5 {[%clk 0:02:32.4]} 14... Nxh5 {[%clk 0:02:21.9]} 15. Nd5 {[%clk 0:02:31.8]}
15... e6 {[%clk 0:02:12]} 16. Ne7+ {[%clk 0:02:29]} 16... Kh8 {[%clk 0:02:10.6]}
17. Nxc8 {[%clk 0:02:29]} 17... Nc5 {[%clk 0:02:00.6]} 18. Nb6 {[%clk
0:02:28.2]} 18... Rad8 {[%clk 0:02:00]} 19. Bc2 {[%clk 0:02:24.6]} 19... f5
{[%clk 0:01:59.3]} 20. b4 {[%clk 0:02:14.1]} 20... e5 {[%clk 0:01:48.4]} 21.
Nxf5 {[%clk 0:02:10.4]} 21... gxf5 {[%clk 0:01:42.4]} 22. bxc5 {[%clk
0:02:09.3]} 22... f4 {[%clk 0:01:42.2]} 23. Bd2 {[%clk 0:02:07.2]} 23... dxc5
{[%clk 0:01:42]} 24. Nd5 {[%clk 0:02:05.7]} 24... f3 {[%clk 0:01:41.5]} 25. g3
{[%clk 0:02:03.1]} 25... Rxd5 {[%clk 0:01:33.2]} 26. cxd5 {[%clk 0:02:02]} 26...
Rf4 {[%clk 0:01:34.1]} 27. gxf4 {[%clk 0:01:59.7]} 27... Ng3 {[%clk 0:01:35]}
28. fxg3 {[%clk 0:01:58.6]} 28... exf4 {[%clk 0:01:33.2]} 29. gxf4 {[%clk
0:01:57.6]} 29... Ba1 {[%clk 0:01:34.1]} 30. Rxa1 {[%clk 0:01:56.5]} 30... f2+
{[%clk 0:01:35]} 31. Rxf2 {[%clk 0:01:55.8]} 1-0

[Event "*** Titled Tuesday Blitz"]
[Site "Chess.com"]
[Date "2020.05.26"]
[Round "9"]
[White "DariaVoit"]
[Black "Chessdemon2019"]
[Result "1-0"]
[WhiteElo "2509"]
[BlackElo "2322"]
[TimeControl "180+1"]
[EndTime "11:49:07 PDT"]
[Termination "DariaVoit won by resignation"]

1. d4 {[%clk 0:03:00.9]} 1... Nf6 {[%clk 0:02:58.8]} 2. Nf3 {[%clk 0:03:00.1]}
2... b6 {[%clk 0:02:59.1]} 3. c4 {[%clk 0:02:59.2]} 3... e6 {[%clk 0:02:59.4]}
4. g3 {[%clk 0:02:58.6]} 4... Bb7 {[%clk 0:02:59.5]} 5. Bg2 {[%clk 0:02:58.9]}
5... Bb4+ {[%clk 0:02:59.8]} 6. Bd2 {[%clk 0:02:58.4]} 6... Bxd2+ {[%clk
0:03:00.2]} 7. Nbxd2 {[%clk 0:02:56.4]} 7... O-O {[%clk 0:03:00.9]} 8. Qc2
{[%clk 0:02:55.6]} 8... d6 {[%clk 0:03:01.1]} 9. e4 {[%clk 0:02:54.5]} 9... Nbd7
{[%clk 0:03:00.1]} 10. O-O {[%clk 0:02:53.8]} 10... e5 {[%clk 0:02:58.7]} 11. d5
{[%clk 0:02:53.3]} 11... Qe7 {[%clk 0:02:56.9]} 12. b4 {[%clk 0:02:52.3]} 12...
a5 {[%clk 0:02:57]} 13. a3 {[%clk 0:02:52.4]} 13... h6 {[%clk 0:02:50]} 14. Nb3
{[%clk 0:02:49.2]} 14... axb4 {[%clk 0:02:42.7]} 15. axb4 {[%clk 0:02:47.3]}
15... g6 {[%clk 0:02:26.2]} 16. Rfc1 {[%clk 0:02:40.8]} 16... Kg7 {[%clk
0:02:22.1]} 17. Ne1 {[%clk 0:02:40.1]} 17... Nh7 {[%clk 0:02:14.1]} 18. Nd3
{[%clk 0:02:34.3]} 18... f5 {[%clk 0:02:13.1]} 19. c5 {[%clk 0:02:34.6]} 19...
bxc5 {[%clk 0:02:09.1]} 20. bxc5 {[%clk 0:02:35.5]} 20... Rxa1 {[%clk
0:02:06.7]} 21. Rxa1 {[%clk 0:02:34.5]} 21... Ndf6 {[%clk 0:01:57.9]} 22. Ra7
{[%clk 0:02:03.8]} 22... fxe4 {[%clk 0:01:49.9]} 23. Rxb7 {[%clk 0:02:03.2]}
23... exd3 {[%clk 0:01:50]} 24. Qxd3 {[%clk 0:02:04.1]} 24... dxc5 {[%clk
0:01:44.3]} 25. d6 {[%clk 0:01:56.3]} 25... Qd7 {[%clk 0:01:37.4]} 26. Rxc7
{[%clk 0:01:55.9]} 26... Rb8 {[%clk 0:01:28.2]} 27. Nxc5 {[%clk 0:01:53]} 27...
Qxc7 {[%clk 0:01:26.5]} 28. dxc7 {[%clk 0:01:53]} 28... Rc8 {[%clk 0:01:27.1]}
29. Qd6 {[%clk 0:01:51.3]} 29... Nf8 {[%clk 0:01:24.1]} 30. Qe7+ {[%clk
0:01:51.2]} 30... Kg8 {[%clk 0:01:24.4]} 31. Qxf6 {[%clk 0:01:51.3]} 31... Rxc7
{[%clk 0:01:25]} 32. Bd5+ {[%clk 0:01:50.9]} 32... Kh7 {[%clk 0:01:23.3]} 33.
Qxf8 {[%clk 0:01:50.3]} 33... Rg7 {[%clk 0:01:22.7]} 34. Nd7 {[%clk 0:01:48.3]}
34... g5 {[%clk 0:01:21.4]} 35. Be4+ {[%clk 0:01:47]} 1-0

[Event "*** Titled Tuesday Blitz"]
[Site "Chess.com"]
[Date "2020.05.26"]
[Round "9"]
[White "bakki78"]
[Black "LiverpooL174"]
[Result "0-1"]
[WhiteElo "2741"]
[BlackElo "2682"]
[TimeControl "180+1"]
[EndTime "11:49:17 PDT"]
[Termination "LiverpooL174 won by resignation"]

1. e4 {[%clk 0:03:00.9]} 1... c6 {[%clk 0:02:59.7]} 2. d4 {[%clk 0:03:00.5]}
2... d5 {[%clk 0:03:00.6]} 3. e5 {[%clk 0:03:00.9]} 3... Bf5 {[%clk 0:03:00.1]}
4. Be2 {[%clk 0:03:01.1]} 4... e6 {[%clk 0:02:59.8]} 5. Nf3 {[%clk 0:03:00.7]}
5... Ne7 {[%clk 0:02:59.9]} 6. c3 {[%clk 0:03:00.2]} 6... Nd7 {[%clk 0:02:54.8]}
7. O-O {[%clk 0:02:59.1]} 7... Bg6 {[%clk 0:02:54.8]} 8. Na3 {[%clk 0:02:58.3]}
8... Nf5 {[%clk 0:02:54.1]} 9. Nc2 {[%clk 0:02:58.3]} 9... Be7 {[%clk
0:02:52.2]} 10. g4 {[%clk 0:02:55.8]} 10... Nh4 {[%clk 0:02:52.2]} 11. Nxh4
{[%clk 0:02:56.4]} 11... Bxh4 {[%clk 0:02:53.1]} 12. f4 {[%clk 0:02:56.7]} 12...
f6 {[%clk 0:02:47.3]} 13. Ne3 {[%clk 0:02:49.9]} 13... fxe5 {[%clk 0:02:45.1]}
14. fxe5 {[%clk 0:02:48.7]} 14... Rf8 {[%clk 0:02:45.4]} 15. Ng2 {[%clk
0:02:46.5]} 15... Bg5 {[%clk 0:02:43.1]} 16. Bxg5 {[%clk 0:02:29.3]} 16... Qxg5
{[%clk 0:02:42.2]} 17. h4 {[%clk 0:02:29.7]} 17... Rxf1+ {[%clk 0:02:38]} 18.
Bxf1 {[%clk 0:02:25.6]} 18... Qe7 {[%clk 0:02:35.5]} 19. Qe1 {[%clk 0:02:24.9]}
19... Kf8 {[%clk 0:02:35]} 20. Nf4 {[%clk 0:02:23.1]} 20... Be4 {[%clk
0:02:30.8]} 21. Qg3 {[%clk 0:02:22.4]} 21... Kg8 {[%clk 0:02:29.3]} 22. Bh3
{[%clk 0:02:22.4]} 22... Nf8 {[%clk 0:02:27.1]} 23. Rf1 {[%clk 0:02:22.1]} 23...
c5 {[%clk 0:02:25.4]} 24. g5 {[%clk 0:02:20.7]} 24... cxd4 {[%clk 0:02:23.7]}
25. cxd4 {[%clk 0:02:20.4]} 25... Rc8 {[%clk 0:02:24.4]} 26. Qg4 {[%clk
0:02:07.5]} 26... Bf5 {[%clk 0:02:22.1]} 27. Nxd5 {[%clk 0:01:56]} 27... Qd8
{[%clk 0:02:11.7]} 28. Rxf5 {[%clk 0:01:40.4]} 28... exf5 {[%clk 0:02:09.8]} 29.
Qf3 {[%clk 0:01:40.9]} 29... g6 {[%clk 0:02:04.4]} 30. Nf6+ {[%clk 0:01:39.6]}
30... Kh8 {[%clk 0:02:03.2]} 31. Qe3 {[%clk 0:01:35.4]} 31... Qb6 {[%clk
0:01:56.9]} 32. Nd5 {[%clk 0:01:06.9]} 32... Qxb2 {[%clk 0:01:55.3]} 33. e6
{[%clk 0:01:06.8]} 33... Qc1+ {[%clk 0:01:53.1]} 0-1

[Event "*** Titled Tuesday Blitz"]
[Site "Chess.com"]
[Date "2020.05.26"]
[Round "9"]
[White "AlexOstrovskiy"]
[Black "Kildepiotr"]
[Result "1-0"]
[WhiteElo "2626"]
[BlackElo "2492"]
[TimeControl "180+1"]
[EndTime "11:49:21 PDT"]
[Termination "AlexOstrovskiy won by checkmate"]

1. d4 {[%clk 0:03:00.9]} 1... c5 {[%clk 0:02:59]} 2. c3 {[%clk 0:02:59.4]} 2...
Nf6 {[%clk 0:02:58.6]} 3. Bf4 {[%clk 0:02:57.8]} 3... d5 {[%clk 0:02:58.3]} 4.
e3 {[%clk 0:02:57.9]} 4... Bf5 {[%clk 0:02:55.5]} 5. Nd2 {[%clk 0:02:55.5]} 5...
Nbd7 {[%clk 0:02:55]} 6. Ngf3 {[%clk 0:02:52.7]} 6... e6 {[%clk 0:02:54.8]} 7.
Nh4 {[%clk 0:02:37.7]} 7... Bg6 {[%clk 0:02:53.9]} 8. Nxg6 {[%clk 0:02:35.1]}
8... hxg6 {[%clk 0:02:54.8]} 9. h3 {[%clk 0:02:35.7]} 9... Qb6 {[%clk
0:02:53.5]} 10. Qb3 {[%clk 0:02:31.2]} 10... c4 {[%clk 0:02:53.1]} 11. Qc2
{[%clk 0:02:29.5]} 11... Qc6 {[%clk 0:02:45]} 12. Be2 {[%clk 0:02:19.9]} 12...
Be7 {[%clk 0:02:42.3]} 13. Bf3 {[%clk 0:02:20.2]} 13... O-O {[%clk 0:02:35.3]}
14. e4 {[%clk 0:02:17.1]} 14... b5 {[%clk 0:02:28.5]} 15. h4 {[%clk 0:02:11.1]}
15... Nb6 {[%clk 0:02:21.2]} 16. e5 {[%clk 0:02:04.9]} 16... Nfd7 {[%clk
0:02:11.2]} 17. h5 {[%clk 0:01:47.1]} 17... g5 {[%clk 0:02:10.5]} 18. Be3 {[%clk
0:01:47.5]} 18... f5 {[%clk 0:02:02.4]} 19. exf6 {[%clk 0:01:46.1]} 19... Bxf6
{[%clk 0:02:02.2]} 20. h6 {[%clk 0:01:41]} 20... Rf7 {[%clk 0:01:52.5]} 21. Qg6
{[%clk 0:01:34.7]} 21... Raf8 {[%clk 0:01:37.2]} 22. Ne4 {[%clk 0:01:00.2]}
22... e5 {[%clk 0:01:31.9]} 23. Nxg5 {[%clk 0:00:56.5]} 23... exd4 {[%clk
0:01:29.6]} 24. Qh7# {[%clk 0:00:56]} 1-0